bitfinex/quotes_BTCUSD_20250831
["timestamp","ask_amount","ask_price","bid_price","bid_amount"]
[1756655473163,0.2498,108970.0,108960.0,5.901808]
[1756655473374,0.2498,108970.0,108960.0,6.28824383]
[1756655475652,0.2498,108970.0,108960.0,6.67467966]
[1756655478292,0.2498,108970.0,108960.0,6.28824383]
[1756655478499,0.2498,108970.0,108960.0,5.901808]
[1756655478892,0.2498,108970.0,108960.0,6.28824383]
[1756655479098,0.2498,108970.0,108960.0,5.901808]
[1756655479319,0.2498,108970.0,108960.0,6.28824383]
[1756655480181,0.63623583,108970.0,108960.0,5.901808]
[1756655481002,0.2498,108970.0,108960.0,5.901808]
[1756655481402,0.63623583,108970.0,108960.0,5.901808]
[1756655481609,0.2498,108970.0,108960.0,5.901808]
[1756655481841,0.63623583,108970.0,108960.0,5.901808]
[1756655482003,0.63623583,108970.0,108960.0,5.901728]
[1756655483073,0.2498,108970.0,108960.0,5.744808]
[1756655483281,0.63623583,108970.0,108960.0,5.901728]
[1756655483431,0.2498,108970.0,108960.0,6.28816383]
[1756655483842,0.2498,108970.0,108960.0,6.13124383]
[1756655484031,0.2498,108970.0,108960.0,6.28812383]
[1756655484644,0.2498,108970.0,108960.0,5.901688]
[1756655484908,0.2498,108970.0,108960.0,6.28812383]
[1756655486044,0.2498,108970.0,108960.0,6.13124383]
[1756655486245,0.2498,108970.0,108960.0,5.94812383]
[1756655492028,0.2498,108970.0,108960.0,5.561688]
[1756655492247,0.2498,108970.0,108960.0,5.94812383]
[1756655493694,0.2498,108970.0,108960.0,5.561688]
[1756655493897,0.2498,108970.0,108960.0,5.94812383]
[1756655494654,0.2498,108970.0,108960.0,5.94867167]
[1756655495975,0.2498,108970.0,108960.0,5.56223584]
[1756655496182,0.2498,108970.0,108960.0,5.94867167]
[1756655500154,0.2498,108970.0,108960.0,5.92108067]
[1756655500384,0.2498,108970.0,108960.0,6.3075165]
[1756655500587,0.2498,108970.0,108960.0,6.3350995]
[1756655500792,0.2498,108970.0,108960.0,6.6750995]
[1756655501752,0.24060899,108970.0,108960.0,6.6730995]
[1756655502137,0.24060899,108970.0,108960.0,7.0720995]
[1756655502548,0.24060899,108970.0,108960.0,7.0780995]
[1756655502936,0.23141824,108970.0,108960.0,7.0780995]
[1756655503096,0.23141824,108970.0,108960.0,7.0760995]
[1756655503296,0.22222749,108970.0,108960.0,7.0760995]
[1756655503505,0.22222749,108970.0,108960.0,7.0800995]
[1756655504155,0.22222749,108970.0,108960.0,7.0799795]
[1756655504356,0.22222749,108970.0,108960.0,6.30710784]
[1756655504572,0.22222749,108970.0,108960.0,7.0799795]
[1756655506446,0.00036224,108980.0,108970.0,0.52353675]
[1756655506649,0.00036224,108980.0,108970.0,1.16292259]
[1756655506842,0.00036224,108980.0,108970.0,1.20714434]
[1756655507060,0.00036224,108980.0,108970.0,0.84828751]
[1756655507264,0.00036224,108980.0,108970.0,1.63472334]
[1756655507711,8e-05,108990.0,108980.0,0.56995574]
[1756655507857,8e-05,108990.0,108980.0,0.89342575]
[1756655508069,8e-05,108990.0,108980.0,0.89542575]
[1756655508294,8e-05,108990.0,108980.0,0.92300175]
[1756655508627,0.67595593,109000.0,108990.0,0.20444189]
[1756655508824,0.67609849,109000.0,108990.0,0.4541419]
[1756655508984,0.67609849,109000.0,108990.0,0.4573519]
[1756655509796,0.28966266,109000.0,108990.0,0.4573519]
[1756655510019,0.28966266,109000.0,108990.0,0.4541419]
[1756655510221,0.67609849,109000.0,108990.0,0.4541419]
[1756655510379,0.67609849,109000.0,108990.0,0.50636296]
[1756655510590,0.67609849,109000.0,108990.0,0.4571519]
[1756655511264,0.67609849,109000.0,108990.0,0.4601519]
[1756655511614,0.67609849,109000.0,108990.0,0.4641519]
[1756655516102,0.67609849,109000.0,108990.0,0.4662719]
[1756655517105,0.28966266,109000.0,108990.0,0.4662719]
[1756655517396,0.67609849,109000.0,108990.0,0.4662719]
[1756655517558,0.28966266,109000.0,108990.0,0.4662719]
[1756655519242,0.28966266,109000.0,108990.0,0.49850835]
[1756655519380,0.28966266,109000.0,108990.0,0.88494418]
[1756655519578,0.28966266,109000.0,108990.0,0.49850835]
[1756655519783,0.28966266,109000.0,108990.0,0.52608435]
[1756655520679,0.28966266,109000.0,108990.0,1.06252018]
[1756655520894,1e-08,109000.0,108990.0,1.85947601]
[1756655521317,1e-08,109000.0,108990.0,2.25947601]
[1756655521511,1e-08,109000.0,108990.0,1.87304018]
[1756655521725,1e-08,109000.0,108990.0,1.31632018]
[1756655521931,1e-08,109000.0,108990.0,1.46596018]
[1756655522139,1e-08,109000.0,108990.0,1.9974264]
[1756655522343,1e-08,109000.0,108990.0,2.0034264]
[1756655522804,1e-08,109000.0,108990.0,2.0004264]
[1756655523008,1e-08,109000.0,108990.0,2.0044264]
[1756655523428,1e-08,109000.0,108990.0,1.33288435]
[1756655523636,0.51490206,109000.0,108990.0,0.74435435]
[1756655523851,1e-08,109000.0,108990.0,0.3349979]
[1756655524066,0.69838829,109000.0,108990.0,0.44308308]
[1756655524272,0.69838829,109000.0,108990.0,0.28648308]
[1756655524476,0.69838829,109000.0,108990.0,0.35010307]
[1756655524652,0.72596829,109000.0,108990.0,0.35010307]
[1756655525047,0.72596829,109000.0,108990.0,0.34410307]
[1756655525626,0.72596829,109000.0,108990.0,0.34710307]
[1756655526193,0.54248206,109000.0,108990.0,0.34710307]
[1756655526864,0.02758001,109000.0,108990.0,0.34710307]
[1756655527077,1e-08,109000.0,108990.0,0.44521308]
[1756655527293,0.51490206,109000.0,108990.0,0.28348308]
[1756655527504,0.51490206,109000.0,108990.0,0.44008308]
[1756655529698,0.51450206,109000.0,108990.0,0.44008308]
[1756655530656,0.51450206,109000.0,108990.0,0.19050307]
[1756655530832,0.51450206,109000.0,108990.0,0.34706307]
[1756655531156,0.54208206,109000.0,108990.0,0.34706307]
[1756655531964,0.54208206,109000.0,108990.0,5.34706307]
[1756655532575,0.54208206,109000.0,108990.0,5.35007307]
[1756655532782,0.54208206,109000.0,108990.0,5.35219307]
[1756655533210,0.51450206,109000.0,108990.0,5.35219307]
[1756655534109,0.54208206,109000.0,108990.0,5.35219307]
[1756655534733,0.51450206,109000.0,108990.0,5.35219307]
[1756655534927,0.54208206,109000.0,108990.0,5.35219307]
[1756655535088,0.51450206,109000.0,108990.0,5.35219307]
[1756655535600,0.54208106,109000.0,108990.0,5.35219307]
[1756655535847,0.51450206,109000.0,108990.0,5.35219307]
[1756655536877,0.51450206,109000.0,108990.0,5.19563307]
[1756655537099,0.51450206,109000.0,108990.0,5.35215307]
[1756655539308,0.21249862,109010.0,109000.0,0.18348623]
[1756655539486,0.21249862,109010.0,109000.0,0.34000623]
[1756655540274,0.02902917,109010.0,109000.0,0.34000623]
[1756655540479,0.54393122,109010.0,109000.0,0.34300623]
[1756655540793,0.54393122,109010.0,109000.0,0.34609623]
[1756655541206,0.54393122,109010.0,109000.0,0.34809623]
[1756655542191,0.02902917,109010.0,109000.0,0.34500623]
[1756655542346,0.02902917,109010.0,109000.0,0.16152]
[1756655542347,0.72740062,109010.0,109000.0,0.16152]
[1756655542548,0.72740062,109010.0,109000.0,0.005]
[1756655542755,0.72740062,109010.0,109000.0,0.34496623]
[1756655543416,0.72740062,109010.0,109000.0,0.005]
[1756655543572,0.72740062,109010.0,109000.0,0.16148]
[1756655543794,0.81569694,109010.0,109000.0,0.16148]
[1756655544738,0.59683682,109010.0,109000.0,0.16148]
[1756655544957,0.62441682,109010.0,109000.0,0.16148]
[1756655545391,0.5361205,109010.0,109000.0,0.16148]
[1756655546470,0.5361205,109010.0,109000.0,0.20219812]
[1756655547191,0.5361205,109010.0,109000.0,0.20215812]
[1756655547393,0.96910051,109010.0,109000.0,0.005]
[1756655549859,1.48400256,109010.0,109000.0,0.005]
[1756655550051,1.15893146,109010.0,109000.0,0.005]
[1756655550272,1.76212983,109010.0,109000.0,0.005]
[1756655550475,1.77072461,109010.0,109000.0,0.005]
[1756655551488,1.77072461,109010.0,109000.0,0.003]
[1756655551701,0.74092051,109010.0,109000.0,0.004]
[1756655551927,1.92716461,109010.0,109000.0,0.004]
[1756655552131,1.92716461,109010.0,109000.0,0.001]
[1756655553176,1.99772461,109010.0,109000.0,0.001]
[1756655553356,2.01492802,109010.0,109000.0,0.001]
[1756655553563,2.02137942,109010.0,109000.0,0.001]
[1756655553764,0.52348623,109000.0,108990.0,5.0]
[1756655553946,1.65486512,109000.0,108990.0,5.0]
[1756655554345,1.68245112,109000.0,108990.0,5.0]
[1756655554783,1.69208587,109000.0,108990.0,5.0]
[1756655555106,1.69208587,109000.0,108990.0,5.001]
[1756655555307,1.83989109,109000.0,108990.0,5.001]
[1756655555586,1.83989109,109000.0,108990.0,5.003]
[1756655557991,1.61838893,109000.0,108990.0,5.003]
[1756655558196,1.80187516,109000.0,108990.0,5.003]
[1756655561954,1.80187516,109000.0,108990.0,5.00609]
[1756655562381,1.80187516,109000.0,108990.0,5.003]
[1756655563643,1.80187516,109000.0,108990.0,5.00609]
[1756655565033,1.80187516,109000.0,108990.0,5.003]
[1756655565585,1.80187516,109000.0,108990.0,5.00609]
[1756655566898,1.80187516,109000.0,108990.0,5.00822]
[1756655567960,1.79216041,109000.0,108990.0,5.00822]
[1756655569423,1.63584041,109000.0,108990.0,5.00822]
[1756655569565,1.02795835,109000.0,108990.0,5.00822]
[1756655569789,1.18427835,109000.0,108990.0,5.00822]
[1756655570354,1.6991804,109000.0,108990.0,5.00822]
[1756655570764,1.18427835,109000.0,108990.0,5.00822]
[1756655571181,1.6991804,109000.0,108990.0,5.00822]
[1756655571590,1.6991804,109000.0,108990.0,5.16454]
[1756655574312,1.70777649,109000.0,108990.0,5.16454]
[1756655574715,0.00859609,109000.0,108990.0,5.16454]
[1756655574918,0.69838828,109000.0,108990.0,5.16454]
[1756655575135,0.21107023,109000.0,108990.0,5.34804307]
[1756655575294,0.72597228,109000.0,108990.0,5.34804307]
[1756655575684,0.72597228,109000.0,108990.0,5.34704307]
[1756655575939,0.72597228,109000.0,108990.0,5.34504307]
[1756655576140,0.72597228,109000.0,108990.0,5.35004307]
[1756655577568,0.21107023,109000.0,108990.0,5.35004307]
[1756655577773,0.72597228,109000.0,108990.0,5.35004307]
[1756655578217,0.21107023,109000.0,108990.0,5.35004307]
[1756655578595,0.72597228,109000.0,108990.0,5.35004307]
[1756655578968,0.72597228,109000.0,108990.0,5.16654]
[1756655579175,0.8142686,109000.0,108990.0,5.1665]
[1756655579380,0.7866846,109000.0,108990.0,5.1665]
[1756655580202,0.69838828,109000.0,108990.0,5.1665]
[1756655582832,0.69838828,109000.0,108990.0,5.35000307]
[1756655583789,0.18348623,109000.0,108990.0,5.35000307]
[1756655583960,0.69838828,109000.0,108990.0,5.35000307]
[1756655587972,0.69838828,109000.0,108990.0,5.16646]
[1756655588826,0.69838828,109000.0,108990.0,5.34996307]
[1756655589361,0.69838828,109000.0,108990.0,5.16646]
[1756655589565,0.7866846,109000.0,108990.0,5.16646]
[1756655589779,0.27178255,109000.0,108990.0,5.16646]
[1756655589984,0.7866846,109000.0,108990.0,5.34996307]
[1756655590394,0.69838828,109000.0,108990.0,5.34996307]
[1756655590977,0.69838828,109000.0,108990.0,5.16646]
[1756655591369,0.69838828,109000.0,108990.0,5.34996307]
[1756655592783,0.69838828,109000.0,108990.0,5.16646]
[1756655594007,0.95640025,109000.0,108990.0,5.16646]
[1756655594411,0.95640025,109000.0,108990.0,5.16650895]
[1756655595740,0.976004,109000.0,108990.0,5.01026895]
[1756655595939,0.976004,109000.0,108990.0,5.16646895]
[1756655596090,0.976004,109000.0,108990.0,5.01026895]
[1756655596291,0.976004,109000.0,108990.0,5.16646895]
[1756655598225,0.976004,109000.0,108990.0,5.01026895]
[1756655598407,0.976004,109000.0,108990.0,5.16646895]
[1756655599090,0.976004,109000.0,108990.0,5.16433895]
[1756655599446,1.36246101,109000.0,108990.0,5.00813895]
[1756655599648,1.36246101,109000.0,108990.0,5.16433895]
[1756655600272,1.36246101,109000.0,108990.0,5.16639895]
[1756655600703,0.976004,109000.0,108990.0,5.16639895]
[1756655603139,0.976004,109000.0,108990.0,5.16433895]
[1756655603762,1.132164,109000.0,108990.0,5.16433895]
[1756655603967,1.61160102,109000.0,108990.0,5.00504895]
[1756655604171,1.61160102,109000.0,108990.0,5.16120895]
[1756655604319,1.62021549,109000.0,108990.0,5.16120895]
[1756655604742,1.62021549,109000.0,108990.0,5.15920895]
[1756655604927,1.62021549,109000.0,108990.0,5.15620895]
[1756655605210,1.62021549,109000.0,108990.0,5.15720895]
[1756655605424,1.62021549,109000.0,108990.0,5.15920895]
[1756655606097,1.62021549,109000.0,108990.0,5.16242895]
[1756655607253,1.61160102,109000.0,108990.0,5.16242895]
[1756655607450,1.61160102,109000.0,108990.0,5.16448895]
[1756655611898,1.61160102,109000.0,108990.0,5.16444]
[1756655613019,1.61160102,109000.0,108990.0,5.1648912]
[1756655620681,1.22514401,109000.0,108990.0,5.1648912]
[1756655621095,1.22514401,109000.0,108990.0,5.0066712]
[1756655621096,1.95160102,109000.0,108990.0,5.0066712]
[1756655621266,2.03226331,109000.0,108990.0,5.0034512]
[1756655621674,7.05985331,109000.0,108990.0,5.0034512]
[1756655621876,7.08614926,109000.0,108990.0,5.0034512]
[1756655622223,7.08606926,109000.0,108990.0,5.0024512]
[1756655622747,7.08606926,109000.0,108990.0,5.0004512]
[1756655623350,6.92998926,109000.0,108990.0,5.0004512]
[1756655623587,7.08606926,109000.0,108990.0,5.0004512]
[1756655623788,7.15662926,109000.0,108990.0,5.0004512]
[1756655623991,7.00054414,109000.0,108990.0,5.0004512]
[1756655624148,7.17756296,109000.0,108990.0,5.0004512]
[1756655624359,8.33693399,109000.0,108990.0,5.0004512]
[1756655624752,7.17756296,109000.0,108990.0,5.0004512]
[1756655627825,8.36709518,109000.0,108990.0,4.58086639]
[1756655628029,7.27752492,109000.0,108990.0,4.58086639]
[1756655628351,7.25772415,109000.0,108990.0,4.58086639]
[1756655628550,7.20772415,109000.0,108990.0,4.58086639]
[1756655628810,7.25772415,109000.0,108990.0,4.58086639]
[1756655629210,7.27752101,109000.0,108990.0,4.1513111]
[1756655629420,7.25772415,109000.0,108990.0,4.1031985]
[1756655629624,8.41709518,109000.0,108990.0,4.1031985]
[1756655629920,8.41709518,109000.0,108990.0,3.60192636]
[1756655630062,8.41709518,109000.0,108990.0,3.37546429]
[1756655630303,8.41709518,109000.0,108990.0,3.28270573]
[1756655630935,8.39125159,109000.0,108990.0,3.28270573]
[1756655631163,8.41702004,109000.0,108990.0,3.28270573]
[1756655631766,8.41702004,109000.0,108990.0,2.73714923]
[1756655632003,8.39984107,109000.0,108990.0,2.55516502]
[1756655632207,8.41701789,109000.0,108990.0,2.42830789]
[1756655632417,8.41701789,109000.0,108990.0,2.16297674]
[1756655632665,8.41701789,109000.0,108990.0,2.10871575]
[1756655632885,8.43680407,109000.0,108990.0,1.56832915]
[1756655633088,8.72092407,109000.0,108990.0,1.48508095]
[1756655633295,8.87696407,109000.0,108990.0,1.39294898]
[1756655633700,8.87696407,109000.0,108990.0,0.89804873]
[1756655633848,8.87696407,109000.0,108990.0,0.74100037]
[1756655634054,8.72192407,109000.0,108990.0,0.5998502]
[1756655634256,8.87796407,109000.0,108990.0,0.5998502]
[1756655634451,8.87696407,109000.0,108990.0,0.5998502]
[1756655634846,8.87796407,109000.0,108990.0,0.5998502]
[1756655637508,8.72192407,109000.0,108990.0,0.5998502]
[1756655637659,8.87796407,109000.0,108990.0,0.6029502]
[1756655639166,7.56255304,109000.0,108990.0,0.6029502]
[1756655639371,7.49199304,109000.0,108990.0,0.6049302]
[1756655639537,7.71859304,109000.0,108990.0,0.6049302]
[1756655639747,7.49099304,109000.0,108990.0,0.6049302]
[1756655640019,7.36282525,109000.0,108990.0,0.6049302]
[1756655640194,7.43538525,109000.0,108990.0,0.6049302]
[1756655640575,7.59142525,109000.0,108990.0,0.6049302]
[1756655641198,7.59138224,109000.0,108990.0,0.6049302]
[1756655642021,7.59138282,109000.0,108990.0,0.6049302]
[1756655642253,7.36478282,109000.0,108990.0,0.6049302]
[1756655642455,7.59138282,109000.0,108990.0,0.6049302]
[1756655642672,7.61501527,109000.0,108990.0,0.6049302]
[1756655642843,7.61501527,109000.0,108990.0,0.6029502]
[1756655643032,7.38841527,109000.0,108990.0,0.6029502]
[1756655643234,7.61501527,109000.0,108990.0,0.6029502]
[1756655643664,7.38841527,109000.0,108990.0,0.6029502]
[1756655643911,7.61501527,109000.0,108990.0,0.6029502]
[1756655644076,7.41316454,109000.0,108990.0,0.6029502]
[1756655644311,7.63976855,109000.0,108990.0,0.6029502]
[1756655645167,7.41316855,109000.0,108990.0,0.6029502]
[1756655645367,7.63976855,109000.0,108990.0,0.6029502]
[1756655645606,7.63977281,109000.0,108990.0,0.6029502]
[1756655646224,7.48377281,109000.0,108990.0,0.6049302]
[1756655646485,7.63977281,109000.0,108990.0,0.6049302]
[1756655647343,7.48377281,109000.0,108990.0,0.6049302]
[1756655647568,7.63977281,109000.0,108990.0,0.6049302]
[1756655648199,7.41317281,109000.0,108990.0,0.6049302]
[1756655648426,7.63977281,109000.0,108990.0,0.6049302]
[1756655649124,7.63977281,109000.0,108990.0,0.6029502]
[1756655649344,7.63977281,109000.0,108990.0,0.6049302]
[1756655650654,7.41317281,109000.0,108990.0,0.6049302]
[1756655651012,7.63977281,109000.0,108990.0,0.6029502]
[1756655651245,7.65797044,109000.0,108990.0,0.6029502]
[1756655651471,7.67306346,109000.0,108990.0,0.6029502]
[1756655651655,7.67302346,109000.0,108990.0,0.6029502]
[1756655653261,7.67302346,109000.0,108990.0,0.5998502]
[1756655655291,7.64827419,109000.0,108990.0,0.5998502]
[1756655656095,7.64827419,109000.0,108990.0,0.6029502]
[1756655658310,7.64828259,109000.0,108990.0,0.5998502]
[1756655658716,7.64828259,109000.0,108990.0,0.6029502]
[1756655659752,7.64828259,109000.0,108990.0,0.6049302]
[1756655661878,7.6246341,109000.0,108990.0,0.6049302]
[1756655662223,8.93728547,109000.0,108990.0,0.6049302]
[1756655662426,8.92006182,109000.0,108990.0,0.6049302]
[1756655662551,8.93728736,109000.0,108990.0,0.6049302]
[1756655664020,8.71072736,109000.0,108990.0,0.6049302]
[1756655664188,8.93724736,109000.0,108990.0,0.6049302]
[1756655664865,8.71072736,109000.0,108990.0,0.6049302]
[1756655665039,8.93724736,109000.0,108990.0,0.6049302]
[1756655665463,7.77716131,109000.0,108990.0,0.5949302]
[1756655666682,7.77712131,109000.0,108990.0,0.5949302]
[1756655668974,7.77712887,109000.0,108990.0,0.5949302]
[1756655669194,7.63722676,109000.0,108990.0,0.5949302]
[1756655669431,8.79731281,109000.0,108990.0,0.5949302]
[1756655669681,8.98079904,109000.0,108990.0,0.5949302]
[1756655671080,8.75431904,109000.0,108990.0,0.5949302]
[1756655671300,8.98079904,109000.0,108990.0,0.5949302]
[1756655671874,8.98075904,109000.0,108990.0,0.5898502]
[1756655672215,8.98075904,109000.0,108990.0,0.5931002]
[1756655672617,8.96353121,109000.0,108990.0,0.5898502]
[1756655672828,8.9807654,109000.0,108990.0,0.5898502]
[1756655673257,8.9807656,109000.0,108990.0,0.5898502]
[1756655673828,8.7543256,109000.0,108990.0,0.5950902]
[1756655674039,8.98083577,109000.0,108990.0,0.5950902]
[1756655674684,8.98083577,109000.0,108990.0,0.5931002]
[1756655675045,8.75439577,109000.0,108990.0,0.5931002]
[1756655675179,8.98083577,109000.0,108990.0,0.5950902]
[1756655675850,8.98083577,109000.0,108990.0,0.594639]
[1756655676044,8.75439577,109000.0,108990.0,0.594639]
[1756655676256,8.98083577,109000.0,108990.0,0.594639]
[1756655676453,8.98083577,109000.0,108990.0,0.592649]
[1756655676870,8.98083577,109000.0,108990.0,0.5931026]
[1756655677955,8.75439577,109000.0,108990.0,0.592649]
[1756655678157,8.98083577,109000.0,108990.0,0.592649]
[1756655679190,8.76279097,109000.0,108990.0,0.5931026]
[1756655679352,8.98923097,109000.0,108990.0,0.5931026]
[1756655679657,8.98919097,109000.0,108990.0,0.5931026]
[1756655680149,8.98919097,109000.0,108990.0,0.592649]
[1756655680563,8.76279097,109000.0,108990.0,0.592649]
[1756655681264,8.98919097,109000.0,108990.0,0.592649]
[1756655682401,8.98919097,109000.0,108990.0,0.589399]
[1756655683368,8.76279589,109000.0,108990.0,0.589399]
[1756655683566,8.98919953,109000.0,108990.0,0.589399]
[1756655683811,8.98919953,109000.0,108990.0,0.592649]
[1756655684353,8.76279946,109000.0,108990.0,0.592649]
[1756655684596,8.76279946,109000.0,108990.0,0.59320044]
[1756655684777,8.98919946,109000.0,108990.0,0.59320044]
[1756655686098,8.98915946,109000.0,108990.0,0.59519044]
[1756655687187,8.98915859,109000.0,108990.0,0.59519044]
[1756655688433,8.98915859,109000.0,108990.0,0.69519044]
[1756655690410,8.98054047,109000.0,108990.0,0.69519044]
[1756655690635,8.98915786,109000.0,108990.0,0.69519044]
[1756655691016,7.82907181,109000.0,108990.0,0.69519044]
[1756655694129,7.81183605,109000.0,108990.0,0.69519044]
[1756655694337,7.82907108,109000.0,108990.0,0.69519044]
[1756655697556,7.82903108,109000.0,108990.0,0.69519044]
[1756655697932,7.82903108,109000.0,108990.0,0.694639]
[1756655698967,7.82903108,109000.0,108990.0,0.69522783]
[1756655700334,7.82899108,109000.0,108990.0,0.69522783]
[1756655703726,7.81391005,109000.0,108990.0,0.69522783]
[1756655703924,7.82899069,109000.0,108990.0,0.69522783]
[1756655704363,7.82037306,109000.0,108990.0,0.69522783]
[1756655704591,7.82899068,109000.0,108990.0,0.69522783]
[1756655705351,7.62331068,109000.0,108990.0,0.69522783]
[1756655705549,6.16335735,109000.0,108990.0,0.69522783]
[1756655705755,0.51753789,109000.0,108990.0,0.69522783]
[1756655705947,1.60461114,109000.0,108990.0,0.69522783]
[1756655706157,1.26461114,109000.0,108990.0,0.69522783]
[1756655706493,0.49122044,109000.0,108990.0,0.69522783]
[1756655706694,1.60461114,109000.0,108990.0,0.69522783]
[1756655707557,1.60459366,109000.0,108990.0,0.69522783]
[1756655708137,1.60259366,109000.0,108990.0,0.69522783]
[1756655708399,0.82920296,109000.0,108990.0,0.69522783]
[1756655708708,1.60259366,109000.0,108990.0,0.69522783]
[1756655709353,1.98928901,109000.0,108990.0,0.69522783]
[1756655709740,1.98928901,109000.0,108990.0,0.69622783]
[1756655710105,1.44695366,109000.0,108990.0,0.69622783]
[1756655710248,1.97201375,109000.0,108990.0,0.69622783]
[1756655710472,1.96341361,109000.0,108990.0,0.69722783]
[1756655711531,2.05170993,109000.0,108990.0,0.69722783]
[1756655715362,1.89610993,109000.0,108990.0,0.69722783]
[1756655715570,2.05166993,109000.0,108990.0,0.69722783]
[1756655716010,1.96337361,109000.0,108990.0,0.69722783]
[1756655717243,0.70328756,109000.0,108990.0,0.59722783]
[1756655717452,1.86337361,109000.0,108990.0,0.59722783]
[1756655717875,1.86337361,109000.0,108990.0,0.62481383]
[1756655718461,1.47667826,109000.0,108990.0,0.62481383]
[1756655719005,1.86337361,109000.0,108990.0,0.62481383]
[1756655719773,1.86337361,109000.0,108990.0,0.624225]
[1756655720942,1.86337361,109000.0,108990.0,0.62482609]
[1756655721979,1.86337361,109000.0,108990.0,0.624225]
[1756655722624,1.36781361,109000.0,108990.0,0.624225]
[1756655722829,1.52333361,109000.0,108990.0,0.624225]
[1756655723116,1.52333361,109000.0,108990.0,0.62482609]
[1756655723319,1.13663826,109000.0,108990.0,0.62482609]
[1756655724225,1.13663826,109000.0,108990.0,0.624225]
[1756655725345,1.13663826,109000.0,108990.0,0.62481398]
[1756655726388,1.13663826,109000.0,108990.0,0.624225]
[1756655727448,1.13635978,109000.0,108990.0,0.624225]
[1756655728605,1.13635978,109000.0,108990.0,0.62490969]
[1756655728996,0.98083978,109000.0,108990.0,0.62490969]
[1756655729212,1.13627978,109000.0,108990.0,0.62490969]
[1756655730280,1.13627978,109000.0,108990.0,0.80841276]
[1756655730457,0.98083978,109000.0,108990.0,0.80841276]
[1756655730666,1.13627978,109000.0,108990.0,0.80841276]
[1756655730848,1.13516376,109000.0,108990.0,0.80841276]
[1756655733527,1.14376072,109000.0,108990.0,0.80841276]
[1756655734771,1.14376072,109000.0,108990.0,0.62490969]
[1756655735154,1.14376072,109000.0,108990.0,0.80841276]
[1756655735356,1.16093925,109000.0,108990.0,0.80841276]
[1756655735739,1.15234229,109000.0,108990.0,0.80841276]
[1756655735934,1.16095148,109000.0,108990.0,0.80841276]
[1756655738556,1.16095148,109000.0,108990.0,0.62490969]
[1756655739465,1.54962683,109000.0,108990.0,0.62165969]
[1756655739667,1.54962683,109000.0,108990.0,0.59407369]
[1756655739868,1.57721283,109000.0,108990.0,0.59407369]
[1756655740274,1.57721283,109000.0,108990.0,0.59723369]
[1756655742752,1.57688836,109000.0,108990.0,0.59723369]
[1756655742923,1.57627628,109000.0,108990.0,0.59723369]
[1756655743129,1.57599151,109000.0,108990.0,0.59723369]
[1756655744747,1.57595151,109000.0,108990.0,0.59723369]
[1756655745013,1.18925616,109000.0,108990.0,0.59723369]
[1756655746572,1.17005768,109000.0,108990.0,0.59723369]
[1756655746780,1.18727947,109000.0,108990.0,0.59723369]
[1756655747700,1.18727947,109000.0,108990.0,0.78073676]
[1756655747877,0.84843324,109000.0,108990.0,0.78073676]
[1756655748079,1.18723947,109000.0,108990.0,0.78073676]
[1756655750262,1.18921947,109000.0,108990.0,0.59723369]
[1756655751371,1.18922365,109000.0,108990.0,0.59723369]
[1756655752153,1.17199878,109000.0,108990.0,0.59723369]
[1756655752492,1.17200181,109000.0,108990.0,0.59723369]
[1756655755925,1.17002181,109000.0,108990.0,0.59723369]
[1756655756143,1.16994181,109000.0,108990.0,0.78073676]
[1756655756343,0.98645558,109000.0,108990.0,0.78073676]
[1756655757295,1.16994181,109000.0,108990.0,0.78073676]
[1756655757518,1.16994257,109000.0,108990.0,0.78073676]
[1756655759822,1.14235657,109000.0,108990.0,0.78073676]
[1756655760471,0.95887034,109000.0,108990.0,0.78073676]
[1756655760884,0.95887059,109000.0,108990.0,0.78073676]
[1756655761333,0.80363059,109000.0,108990.0,0.78073676]
[1756655761522,0.95883059,109000.0,108990.0,0.78073676]
[1756655761754,0.95883059,109000.0,108990.0,0.93593676]
[1756655762313,0.95883059,109000.0,108990.0,1.08593676]
[1756655762740,0.95883059,109000.0,108990.0,0.93593676]
[1756655762960,1.14231682,109000.0,108990.0,0.93593676]
[1756655763189,0.98711682,109000.0,108990.0,0.93593676]
[1756655763395,1.14231682,109000.0,108990.0,0.93593676]
[1756655766415,1.14227682,109000.0,108990.0,0.93593676]
[1756655766999,1.13366244,109000.0,108990.0,0.93593676]
[1756655767759,0.79501621,109000.0,108990.0,0.93593676]
[1756655767957,1.13366244,109000.0,108990.0,0.93593676]
[1756655768156,0.95017621,109000.0,108990.0,0.93593676]
[1756655768971,1.13366244,109000.0,108990.0,0.93593676]
[1756655769458,0.95833508,109000.0,108990.0,0.93593676]
[1756655771099,0.97673291,109000.0,108990.0,0.93593676]
[1756655772963,0.79320668,109000.0,108990.0,0.93593676]
[1756655773156,0.97669291,109000.0,108990.0,0.93593676]
[1756655774154,0.97669291,109000.0,108990.0,0.75243369]
[1756655774367,0.97669291,109000.0,108990.0,0.93593676]
[1756655774795,0.82157291,109000.0,108990.0,0.93593676]
[1756655774970,0.97669291,109000.0,108990.0,0.93593676]
[1756655775936,0.82157291,109000.0,108990.0,0.93593676]
[1756655776127,0.97669291,109000.0,108990.0,0.93593676]
[1756655777490,0.82157291,109000.0,108990.0,0.93593676]
[1756655777675,0.97665291,109000.0,108990.0,0.93593676]
[1756655778217,0.97665291,109000.0,108990.0,0.75243369]
[1756655778912,0.82157291,109000.0,108990.0,0.75243369]
[1756655779051,0.97665291,109000.0,108990.0,0.75243369]
[1756655779457,0.97665291,109000.0,108990.0,0.93593676]
[1756655780116,0.97665291,109000.0,108990.0,0.75243369]
[1756655781037,0.97665291,109000.0,108990.0,0.59723369]
[1756655781254,0.97665291,109000.0,108990.0,0.75231369]
[1756655782413,0.82157291,109000.0,108990.0,0.75231369]
[1756655782618,0.97661291,109000.0,108990.0,0.75231369]
[1756655785163,0.20188406,109000.0,108990.0,0.93581676]
[1756655785389,0.58857941,109000.0,108990.0,0.93581676]
[1756655785863,0.38669535,109000.0,108990.0,0.93581676]
[1756655786094,0.2555837,109010.0,108990.0,0.93581676]
[1756655786340,0.26419378,109010.0,109000.0,0.16034357]
[1756655786564,0.45880965,109010.0,109000.0,0.3458898]
[1756655786789,0.45880965,109010.0,109000.0,0.34359623]
[1756655787017,0.45880965,109010.0,109000.0,0.34428092]
[1756655787237,0.47691915,109010.0,109000.0,0.37186092]
[1756655787447,0.66038855,109010.0,109000.0,0.37186092]
[1756655787945,0.45880965,109010.0,109000.0,0.37186092]
[1756655789668,0.45880965,109010.0,109000.0,0.37286092]
[1756655789874,0.45880965,109010.0,109000.0,0.22082092]
[1756655790081,0.45880965,109010.0,109000.0,0.21982092]
[1756655790314,0.64227905,109010.0,109000.0,0.37782092]
[1756655791134,0.64227905,109010.0,109000.0,0.03933469]
[1756655791350,0.64227905,109010.0,109000.0,0.19433469]
[1756655791542,0.35654594,109020.0,109000.0,0.22282092]
[1756655791793,0.38669535,109010.0,109000.0,0.37481092]
[1756655792417,0.57016475,109010.0,109000.0,0.37782092]
[1756655792624,0.57016475,109010.0,109000.0,0.03633469]